[Event "*** Titled Tuesday Blitz"]
[Site "Chess.com"]
[Date "2019.08.06"]
[Round "9"]
[White "dianamirza"]
[Black "Komissarov_alex"]
[Result "0-1"]
[WhiteElo "2280"]
[BlackElo "2174"]
[TimeControl "180+2"]
[EndTime "15:05:52 PDT"]
[Termination "Komissarov_alex won by checkmate"]

1. e4 {[%clk 0:03:01.9]} 1... d5 {[%clk 0:02:53.9]} 2. exd5 {[%clk 0:02:56.5]}
2... Nf6 {[%clk 0:02:52.6]} 3. d4 {[%clk 0:02:54.6]} 3... Bg4 {[%clk 0:02:43.3]}
4. f3 {[%clk 0:02:47.3]} 4... Bf5 {[%clk 0:02:41.6]} 5. g4 {[%clk 0:02:47.5]}
5... Bg6 {[%clk 0:02:36]} 6. c4 {[%clk 0:02:41.9]} 6... e6 {[%clk 0:02:33.9]} 7.
dxe6 {[%clk 0:02:38.8]} 7... Nc6 {[%clk 0:02:31.6]} 8. d5 {[%clk 0:02:22]} 8...
Nb4 {[%clk 0:02:16.1]} 9. exf7+ {[%clk 0:02:22.3]} 9... Kxf7 {[%clk 0:02:07.2]}
10. Na3 {[%clk 0:02:18.7]} 10... Bc5 {[%clk 0:01:54.5]} 11. Be2 {[%clk
0:02:13.7]} 11... Re8 {[%clk 0:01:21.9]} 12. Nh3 {[%clk 0:02:09.3]} 12... Nxg4
{[%clk 0:01:15.6]} 13. Ng5+ {[%clk 0:02:07]} 13... Kg8 {[%clk 0:01:00.4]} 14.
fxg4 {[%clk 0:02:03]} 14... Nd3+ {[%clk 0:00:38]} 15. Kf1 {[%clk 0:02:04.1]}
15... Rf8+ {[%clk 0:00:23.6]} 16. Nf3 {[%clk 0:01:55.2]} 16... Qh4 {[%clk
0:00:22.1]} 17. Kg2 {[%clk 0:01:40.3]} 17... Qxg4+ {[%clk 0:00:17.5]} 18. Kf1
{[%clk 0:01:38.8]} 18... Qh3# {[%clk 0:00:17]} 0-1

[Event "*** Titled Tuesday Blitz"]
[Site "Chess.com"]
[Date "2019.08.06"]
[Round "9"]
[White "StephenDedalus83"]
[Black "BlitzWizard04"]
[Result "1-0"]
[WhiteElo "2787"]
[BlackElo "2500"]
[TimeControl "180+2"]
[EndTime "15:06:02 PDT"]
[Termination "StephenDedalus83 won by resignation"]

1. e4 {[%clk 0:03:01.9]} 1... e5 {[%clk 0:03:00.4]} 2. Nf3 {[%clk 0:03:02.3]}
2... Nf6 {[%clk 0:03:01.1]} 3. Nxe5 {[%clk 0:02:47.6]} 3... d6 {[%clk 0:03:01]}
4. Nf3 {[%clk 0:02:46.1]} 4... Nxe4 {[%clk 0:03:01.6]} 5. d4 {[%clk 0:02:43.6]}
5... d5 {[%clk 0:03:02.4]} 6. Bd3 {[%clk 0:02:44.6]} 6... Bf5 {[%clk 0:03:02.4]}
7. O-O {[%clk 0:02:42.3]} 7... Be7 {[%clk 0:03:03]} 8. c4 {[%clk 0:02:43.4]}
8... dxc4 {[%clk 0:03:01.8]} 9. Bxc4 {[%clk 0:02:43.7]} 9... O-O {[%clk
0:03:02]} 10. Nc3 {[%clk 0:02:44.6]} 10... Nc6 {[%clk 0:02:56.7]} 11. Re1 {[%clk
0:02:43.8]} 11... Nxc3 {[%clk 0:02:44.7]} 12. bxc3 {[%clk 0:02:44.1]} 12... Bg4
{[%clk 0:02:35.3]} 13. h3 {[%clk 0:02:44.2]} 13... Bh5 {[%clk 0:02:35.4]} 14.
Rb1 {[%clk 0:02:41.2]} 14... b6 {[%clk 0:02:34.4]} 15. Rb5 {[%clk 0:02:41.9]}
15... Bg6 {[%clk 0:02:29.1]} 16. Bd5 {[%clk 0:02:39.1]} 16... a6 {[%clk
0:02:21.4]} 17. Bxc6 {[%clk 0:02:39.1]} 17... axb5 {[%clk 0:02:22.2]} 18. Bxa8
{[%clk 0:02:40.2]} 18... Qxa8 {[%clk 0:02:06.3]} 19. Rxe7 {[%clk 0:02:40.7]}
19... c5 {[%clk 0:01:58.6]} 20. d5 {[%clk 0:02:38.6]} 20... Qxa2 {[%clk
0:01:58.9]} 21. Bf4 {[%clk 0:02:37.5]} 21... b4 {[%clk 0:01:59.2]} 22. cxb4
{[%clk 0:02:37.4]} 22... cxb4 {[%clk 0:02:01.1]} 23. d6 {[%clk 0:02:24.5]} 23...
b3 {[%clk 0:02:00.6]} 24. d7 {[%clk 0:02:22.5]} 24... b2 {[%clk 0:00:25.2]} 25.
Re8 {[%clk 0:02:22.8]} 25... Qa3 {[%clk 0:00:24.3]} 26. Bd6 {[%clk 0:02:19.1]}
26... Qxd6 {[%clk 0:00:18.6]} 27. Qxd6 {[%clk 0:02:19.7]} 27... b1=Q+ {[%clk
0:00:19.1]} 28. Kh2 {[%clk 0:02:21.1]} 1-0

[Event "*** Titled Tuesday Blitz"]
[Site "Chess.com"]
[Date "2019.08.06"]
[Round "9"]
[White "albi1999"]
[Black "yoolund"]
[Result "1-0"]
[WhiteElo "2516"]
[BlackElo "2637"]
[TimeControl "180+2"]
[EndTime "15:06:19 PDT"]
[Termination "albi1999 won by resignation"]

1. d4 {[%clk 0:03:01.9]} 1... Nf6 {[%clk 0:03:00.2]} 2. c4 {[%clk 0:02:58.8]}
2... g6 {[%clk 0:03:01.1]} 3. g3 {[%clk 0:02:59.9]} 3... Bg7 {[%clk 0:03:01.8]}
4. Bg2 {[%clk 0:03:01.3]} 4... O-O {[%clk 0:03:03.7]} 5. Nc3 {[%clk 0:03:02.2]}
5... d6 {[%clk 0:03:05.1]} 6. Nf3 {[%clk 0:03:02.6]} 6... Nc6 {[%clk 0:03:06.1]}
7. O-O {[%clk 0:03:03.9]} 7... Bf5 {[%clk 0:03:07]} 8. d5 {[%clk 0:02:51.2]}
8... Na5 {[%clk 0:03:07.6]} 9. Nd2 {[%clk 0:02:44.7]} 9... c5 {[%clk 0:03:06.7]}
10. e4 {[%clk 0:02:46]} 10... Bd7 {[%clk 0:03:06.6]} 11. Qc2 {[%clk 0:02:46.7]}
11... a6 {[%clk 0:03:07.8]} 12. b3 {[%clk 0:02:47]} 12... b5 {[%clk 0:03:09.3]}
13. Bb2 {[%clk 0:02:48.4]} 13... Rb8 {[%clk 0:03:08.2]} 14. Rab1 {[%clk
0:02:49.5]} 14... bxc4 {[%clk 0:02:55.4]} 15. bxc4 {[%clk 0:02:51.4]} 15... e6
{[%clk 0:02:57]} 16. h3 {[%clk 0:02:49.9]} 16... exd5 {[%clk 0:02:57.6]} 17.
cxd5 {[%clk 0:02:47.5]} 17... h5 {[%clk 0:02:40.9]} 18. Ba1 {[%clk 0:02:47.6]}
18... Rxb1 {[%clk 0:01:58.4]} 19. Rxb1 {[%clk 0:02:49.5]} 19... h4 {[%clk
0:01:59.7]} 20. g4 {[%clk 0:02:48.3]} 20... Nxg4 {[%clk 0:01:36.8]} 21. hxg4
{[%clk 0:02:47.7]} 21... Bxg4 {[%clk 0:01:38.7]} 22. f3 {[%clk 0:02:43]} 22...
Bd4+ {[%clk 0:01:19.4]} 23. Kh1 {[%clk 0:02:37]} 23... h3 {[%clk 0:01:18.3]} 24.
Bf1 {[%clk 0:02:21.7]} 24... Bh5 {[%clk 0:00:31.2]} 25. Ne2 {[%clk 0:02:08.8]}
25... Bf2 {[%clk 0:00:19.7]} 26. Qc3 {[%clk 0:02:05.9]} 26... f6 {[%clk
0:00:19.2]} 27. Nf4 {[%clk 0:02:04.9]} 1-0

[Event "*** Titled Tuesday Blitz"]
[Site "Chess.com"]
[Date "2019.08.06"]
[Round "9"]
[White "Korchmar_Vasiliy"]
[Black "AbasovN"]
[Result "0-1"]
[WhiteElo "2694"]
[BlackElo "2893"]
[TimeControl "180+2"]
[EndTime "15:06:28 PDT"]
[Termination "AbasovN won by resignation"]

1. d4 {[%clk 0:03:01.9]} 1... Nf6 {[%clk 0:03:00.2]} 2. c4 {[%clk 0:03:03.1]}
2... e6 {[%clk 0:03:02.1]} 3. g3 {[%clk 0:03:03.9]} 3... d5 {[%clk 0:03:02.4]}
4. Bg2 {[%clk 0:03:04.7]} 4... dxc4 {[%clk 0:03:01.6]} 5. Nf3 {[%clk 0:03:05.8]}
5... c6 {[%clk 0:02:53]} 6. O-O {[%clk 0:03:02.1]} 6... b5 {[%clk 0:02:52.9]} 7.
Ne5 {[%clk 0:03:03.3]} 7... Bb7 {[%clk 0:02:53.2]} 8. b3 {[%clk 0:03:04]} 8...
cxb3 {[%clk 0:02:53.2]} 9. axb3 {[%clk 0:03:05.9]} 9... Be7 {[%clk 0:02:48.2]}
10. Nc3 {[%clk 0:03:06.4]} 10... a6 {[%clk 0:02:47.9]} 11. Bb2 {[%clk
0:02:56.8]} 11... O-O {[%clk 0:02:47.8]} 12. Ne4 {[%clk 0:02:50.5]} 12... Qb6
{[%clk 0:02:24.6]} 13. Qc2 {[%clk 0:02:49.8]} 13... Nbd7 {[%clk 0:02:00.7]} 14.
Nd3 {[%clk 0:02:10.8]} 14... a5 {[%clk 0:01:16.7]} 15. Nec5 {[%clk 0:01:58.5]}
15... Nxc5 {[%clk 0:01:10.7]} 16. dxc5 {[%clk 0:02:00.4]} 16... Qc7 {[%clk
0:01:10.2]} 17. Be5 {[%clk 0:01:43.6]} 17... Qc8 {[%clk 0:01:10.9]} 18. Qb2
{[%clk 0:01:34.3]} 18... Rd8 {[%clk 0:01:10.8]} 19. h3 {[%clk 0:01:29.9]} 19...
Ne8 {[%clk 0:01:11.3]} 20. b4 {[%clk 0:01:22.9]} 20... a4 {[%clk 0:01:09.9]} 21.
Nf4 {[%clk 0:01:07.5]} 21... f6 {[%clk 0:01:09.4]} 22. Bc3 {[%clk 0:01:08]}
22... e5 {[%clk 0:01:07.6]} 23. Nd3 {[%clk 0:01:08]} 23... Qe6 {[%clk
0:01:07.6]} 24. g4 {[%clk 0:00:56.6]} 24... Nc7 {[%clk 0:01:06]} 25. e4 {[%clk
0:00:51.9]} 25... Rxd3 {[%clk 0:01:03.1]} 0-1

[Event "*** Titled Tuesday Blitz"]
[Site "Chess.com"]
[Date "2019.08.06"]
[Round "9"]
[White "JMatias"]
[Black "Irochka83"]
[Result "1-0"]
[WhiteElo "2452"]
[BlackElo "2322"]
[TimeControl "180+2"]
[EndTime "15:06:44 PDT"]
[Termination "JMatias won on time"]

1. c4 {[%clk 0:03:01.9]} 1... c5 {[%clk 0:02:59]} 2. g3 {[%clk 0:03:02]} 2...
Nc6 {[%clk 0:02:59.2]} 3. Bg2 {[%clk 0:03:02.8]} 3... g6 {[%clk 0:02:59]} 4. Nc3
{[%clk 0:03:02.2]} 4... Bg7 {[%clk 0:03:00.3]} 5. Nf3 {[%clk 0:03:02.8]} 5... e6
{[%clk 0:02:53.6]} 6. a3 {[%clk 0:03:02]} 6... Nge7 {[%clk 0:02:40]} 7. b4
{[%clk 0:03:01]} 7... cxb4 {[%clk 0:02:28.7]} 8. axb4 {[%clk 0:02:59]} 8... Nxb4
{[%clk 0:02:30.1]} 9. Ba3 {[%clk 0:02:59.7]} 9... Nbc6 {[%clk 0:02:31.2]} 10.
Nb5 {[%clk 0:03:00.7]} 10... O-O {[%clk 0:02:30.8]} 11. Bd6 {[%clk 0:03:00.7]}
11... Bxa1 {[%clk 0:01:59.5]} 12. Bc7 {[%clk 0:02:59.6]} 12... Bg7 {[%clk
0:01:50.3]} 13. Bxd8 {[%clk 0:02:57.5]} 13... Rxd8 {[%clk 0:01:51.8]} 14. Nd6
{[%clk 0:02:55]} 14... Nf5 {[%clk 0:01:46.7]} 15. Nxf5 {[%clk 0:02:55.7]} 15...
exf5 {[%clk 0:01:47.2]} 16. h4 {[%clk 0:02:50.6]} 16... h5 {[%clk 0:01:33.9]}
17. O-O {[%clk 0:02:48.2]} 17... d6 {[%clk 0:01:34.5]} 18. Qb3 {[%clk
0:02:40.1]} 18... Ne5 {[%clk 0:01:26.8]} 19. Rb1 {[%clk 0:02:29]} 19... Nxf3+
{[%clk 0:01:14.4]} 20. Bxf3 {[%clk 0:02:30.9]} 20... a5 {[%clk 0:01:02.6]} 21.
Bd5 {[%clk 0:02:24]} 21... a4 {[%clk 0:00:52.1]} 22. Qa3 {[%clk 0:02:25]} 22...
Ra7 {[%clk 0:00:27.4]} 23. Rb4 {[%clk 0:02:10.4]} 23... Bd7 {[%clk 0:00:24.5]}
24. Rxb7 {[%clk 0:02:10.5]} 24... Rxb7 {[%clk 0:00:23.6]} 25. Bxb7 {[%clk
0:02:12.4]} 25... Be8 {[%clk 0:00:21.3]} 26. Ba6 {[%clk 0:02:00.9]} 26... Ra8
{[%clk 0:00:17]} 27. Bb5 {[%clk 0:02:00.8]} 27... Kf8 {[%clk 0:00:04]} 28. Qxd6+
{[%clk 0:01:56.9]} 28... Kg8 {[%clk 0:00:05.1]} 29. Bxe8 {[%clk 0:01:51.4]}
29... a3 {[%clk 0:00:04.1]} 30. Bxf7+ {[%clk 0:01:52.5]} 1-0

[Event "*** Titled Tuesday Blitz"]
[Site "Chess.com"]
[Date "2019.08.06"]
[Round "9"]
[White "boasovietica"]
[Black "djano"]
[Result "1-0"]
[WhiteElo "2463"]
[BlackElo "2332"]
[TimeControl "180+2"]
[EndTime "15:07:03 PDT"]
[Termination "boasovietica won by resignation"]

1. e4 {[%clk 0:03:01.9]} 1... c5 {[%clk 0:00:35.7]} 2. Nf3 {[%clk 0:03:01.6]}
2... Nc6 {[%clk 0:00:36.9]} 3. d4 {[%clk 0:02:58.4]} 3... cxd4 {[%clk
0:00:38.3]} 4. Nxd4 {[%clk 0:02:58.9]} 4... Nf6 {[%clk 0:00:40]} 5. Nc3 {[%clk
0:02:57.7]} 5... e5 {[%clk 0:00:41.5]} 6. Ndb5 {[%clk 0:02:55.1]} 6... d6 {[%clk
0:00:43]} 7. Bg5 {[%clk 0:02:55.3]} 7... a6 {[%clk 0:00:44.3]} 8. Na3 {[%clk
0:02:55.5]} 8... b5 {[%clk 0:00:45.6]} 9. Bxf6 {[%clk 0:02:51.7]} 9... gxf6
{[%clk 0:00:46.7]} 10. Nd5 {[%clk 0:02:53.1]} 10... Bg7 {[%clk 0:00:47.9]} 11.
c3 {[%clk 0:02:02.5]} 11... f5 {[%clk 0:00:48.9]} 12. Bd3 {[%clk 0:01:45.3]}
12... Be6 {[%clk 0:00:49.3]} 13. Qh5 {[%clk 0:01:45.3]} 13... Bxd5 {[%clk
0:00:45.8]} 14. exd5 {[%clk 0:01:37.4]} 14... Ne7 {[%clk 0:00:46.8]} 15. Bxf5
{[%clk 0:01:30]} 15... Nxd5 {[%clk 0:00:48]} 16. O-O {[%clk 0:01:16.1]} 16...
Nf4 {[%clk 0:00:44.2]} 17. Qg4 {[%clk 0:01:11.2]} 17... Kf8 {[%clk 0:00:43.3]}
18. Rad1 {[%clk 0:01:10]} 18... Qf6 {[%clk 0:00:42.2]} 19. g3 {[%clk 0:01:08.7]}
19... h5 {[%clk 0:00:43.1]} 20. Qf3 {[%clk 0:00:57.3]} 20... Qxf5 {[%clk
0:00:42.7]} 21. Qxa8+ {[%clk 0:00:56.2]} 21... Ke7 {[%clk 0:00:42.8]} 22. Qb7+
{[%clk 0:00:56.9]} 22... Ke6 {[%clk 0:00:40.2]} 23. gxf4 {[%clk 0:00:55.9]}
23... Bh6 {[%clk 0:00:36.2]} 24. Qd5+ {[%clk 0:00:51.1]} 24... Kf6 {[%clk
0:00:35.7]} 25. Qxd6+ {[%clk 0:00:51.1]} 1-0

[Event "*** Titled Tuesday Blitz"]
[Site "Chess.com"]
[Date "2019.08.06"]
[Round "9"]
[White "politeplayer"]
[Black "MFguimaraes"]
[Result "0-1"]
[WhiteElo "2240"]
[BlackElo "2279"]
[TimeControl "180+2"]
[EndTime "15:07:18 PDT"]
[Termination "MFguimaraes won by resignation"]

1. e4 {[%clk 0:03:01.9]} 1... e6 {[%clk 0:02:58.9]} 2. Nf3 {[%clk 0:03:01.9]}
2... d5 {[%clk 0:02:57.9]} 3. exd5 {[%clk 0:03:03.2]} 3... exd5 {[%clk
0:02:58.6]} 4. d4 {[%clk 0:03:04.8]} 4... Bd6 {[%clk 0:02:58.2]} 5. c4 {[%clk
0:03:03.9]} 5... dxc4 {[%clk 0:02:57.5]} 6. Bxc4 {[%clk 0:03:04.2]} 6... Ne7
{[%clk 0:02:58.8]} 7. O-O {[%clk 0:03:04.8]} 7... Nbc6 {[%clk 0:02:56.3]} 8. h3
{[%clk 0:02:55.7]} 8... h6 {[%clk 0:02:57]} 9. Nc3 {[%clk 0:02:55.3]} 9... Bf5
{[%clk 0:02:56.9]} 10. a3 {[%clk 0:02:51.4]} 10... O-O {[%clk 0:02:56.4]} 11.
Be3 {[%clk 0:02:48.2]} 11... Qd7 {[%clk 0:02:50.7]} 12. Re1 {[%clk 0:02:35.5]}
12... Rad8 {[%clk 0:02:49.9]} 13. Rc1 {[%clk 0:02:26.1]} 13... Ng6 {[%clk
0:02:43.8]} 14. Bb5 {[%clk 0:02:16.3]} 14... a6 {[%clk 0:02:44.6]} 15. Bf1
{[%clk 0:01:58.9]} 15... Rfe8 {[%clk 0:02:39.9]} 16. b4 {[%clk 0:01:57.6]} 16...
Nce7 {[%clk 0:02:28.2]} 17. Qa4 {[%clk 0:01:43.4]} 17... c6 {[%clk 0:02:27.4]}
18. Qb3 {[%clk 0:01:26.4]} 18... Be6 {[%clk 0:02:25.8]} 19. Qb1 {[%clk
0:01:22.1]} 19... Nd5 {[%clk 0:02:25.2]} 20. Ne4 {[%clk 0:01:18.8]} 20... Bb8
{[%clk 0:02:20]} 21. Nc5 {[%clk 0:01:18.2]} 21... Qc7 {[%clk 0:02:12.6]} 22.
Nxe6 {[%clk 0:01:15.6]} 22... Rxe6 {[%clk 0:02:14.5]} 23. Bd2 {[%clk 0:00:57.6]}
23... Nh4 {[%clk 0:02:14.7]} 24. Ne5 {[%clk 0:00:56.9]} 24... f6 {[%clk
0:02:05.4]} 25. g3 {[%clk 0:00:31.4]} 25... fxe5 {[%clk 0:02:01.9]} 26. gxh4
{[%clk 0:00:32.3]} 26... exd4 {[%clk 0:01:43]} 27. f4 {[%clk 0:00:33]} 27... Ne3
{[%clk 0:01:35.4]} 28. Bxe3 {[%clk 0:00:27.7]} 28... Rxe3 {[%clk 0:01:36.1]} 29.
Bc4+ {[%clk 0:00:25.2]} 29... Kh8 {[%clk 0:01:36.8]} 30. Rxe3 {[%clk 0:00:23.1]}
30... dxe3 {[%clk 0:01:37.8]} 31. Rd1 {[%clk 0:00:19.2]} 31... Rf8 {[%clk
0:01:33.9]} 32. Qg6 {[%clk 0:00:18.5]} 32... Qxf4 {[%clk 0:01:30.5]} 33. Qg2
{[%clk 0:00:08.8]} 0-1

[Event "*** Titled Tuesday Blitz"]
[Site "Chess.com"]
[Date "2019.08.06"]
[Round "9"]
[White "julinha97"]
[Black "pandamaster3000"]
[Result "0-1"]
[WhiteElo "2223"]
[BlackElo "2301"]
[TimeControl "180+2"]
[EndTime "15:07:31 PDT"]
[Termination "pandamaster3000 won on time"]

1. e4 {[%clk 0:03:01.9]} 1... c5 {[%clk 0:03:00.6]} 2. Nf3 {[%clk 0:03:01.9]}
2... d6 {[%clk 0:03:02]} 3. Nc3 {[%clk 0:03:02.4]} 3... Nf6 {[%clk 0:03:02.6]}
4. e5 {[%clk 0:03:03.4]} 4... dxe5 {[%clk 0:02:56]} 5. Nxe5 {[%clk 0:03:05.3]}
5... Nbd7 {[%clk 0:02:56.1]} 6. d4 {[%clk 0:03:05.8]} 6... cxd4 {[%clk
0:02:40.1]} 7. Qxd4 {[%clk 0:03:04.1]} 7... a6 {[%clk 0:02:35.1]} 8. Bf4 {[%clk
0:03:01.2]} 8... e6 {[%clk 0:02:13.5]} 9. O-O-O {[%clk 0:02:58.9]} 9... Qa5
{[%clk 0:02:05.4]} 10. Nxd7 {[%clk 0:02:20.6]} 10... Nxd7 {[%clk 0:01:42.6]} 11.
Bc4 {[%clk 0:02:18.2]} 11... Qc5 {[%clk 0:01:37.7]} 12. Rhe1 {[%clk 0:02:10.3]}
12... Qxd4 {[%clk 0:01:31.1]} 13. Rxd4 {[%clk 0:02:12.2]} 13... Bc5 {[%clk
0:01:28.9]} 14. Rd2 {[%clk 0:02:12.7]} 14... O-O {[%clk 0:01:29.6]} 15. Bd6
{[%clk 0:02:13]} 15... Bxd6 {[%clk 0:01:30.2]} 16. Rxd6 {[%clk 0:02:14.9]} 16...
Nf6 {[%clk 0:01:22.3]} 17. a4 {[%clk 0:02:09.9]} 17... Bd7 {[%clk 0:01:20.3]}
18. Ne4 {[%clk 0:02:04.1]} 18... Bxa4 {[%clk 0:01:12.7]} 19. Nxf6+ {[%clk
0:02:00.5]} 19... gxf6 {[%clk 0:01:14.6]} 20. b3 {[%clk 0:02:01]} 20... Bc6
{[%clk 0:01:14.8]} 21. Re3 {[%clk 0:02:00.7]} 21... Rfd8 {[%clk 0:01:14.9]} 22.
Red3 {[%clk 0:01:54.8]} 22... Rxd6 {[%clk 0:01:15.2]} 23. Rxd6 {[%clk
0:01:56.7]} 23... Kf8 {[%clk 0:01:16.7]} 24. f3 {[%clk 0:01:56.1]} 24... Ke7
{[%clk 0:01:17.5]} 25. Rd4 {[%clk 0:01:57.8]} 25... Rg8 {[%clk 0:01:17.4]} 26.
Bf1 {[%clk 0:01:42.6]} 26... Rg5 {[%clk 0:01:14.5]} 27. Kb2 {[%clk 0:01:41.3]}
27... Rd5 {[%clk 0:01:13.4]} 28. Rh4 {[%clk 0:01:41.4]} 28... h5 {[%clk
0:01:13.3]} 29. Bc4 {[%clk 0:01:34.6]} 29... Rg5 {[%clk 0:01:14.3]} 30. f4
{[%clk 0:01:32.6]} 30... Rxg2 {[%clk 0:01:11.9]} 31. Rxh5 {[%clk 0:01:33.7]}
31... Be4 {[%clk 0:01:13.2]} 0-1

[Event "*** Titled Tuesday Blitz"]
[Site "Chess.com"]
[Date "2019.08.06"]
[Round "9"]
[White "Msb2"]
[Black "hurricane7791"]
[Result "1-0"]
[WhiteElo "2860"]
[BlackElo "2717"]
[TimeControl "180+2"]
[EndTime "15:07:40 PDT"]
[Termination "Msb2 won by resignation"]

1. d4 {[%clk 0:03:01.9]} 1... Nf6 {[%clk 0:03:00.8]} 2. c4 {[%clk 0:02:59.1]}
2... e6 {[%clk 0:03:00.6]} 3. Nc3 {[%clk 0:03:00.7]} 3... Bb4 {[%clk 0:03:01.3]}
4. e3 {[%clk 0:03:01.8]} 4... O-O {[%clk 0:03:01.8]} 5. Bd2 {[%clk 0:03:03.5]}
5... d5 {[%clk 0:02:55.4]} 6. Nf3 {[%clk 0:03:03.8]} 6... b6 {[%clk 0:02:55.8]}
7. cxd5 {[%clk 0:03:05.2]} 7... exd5 {[%clk 0:02:57.7]} 8. Rc1 {[%clk
0:03:06.5]} 8... a6 {[%clk 0:02:55.5]} 9. Bd3 {[%clk 0:03:07.1]} 9... Bb7 {[%clk
0:02:56.5]} 10. O-O {[%clk 0:03:07.1]} 10... Bd6 {[%clk 0:02:57.9]} 11. Ne5
{[%clk 0:03:08.5]} 11... c5 {[%clk 0:02:59]} 12. f4 {[%clk 0:02:49.1]} 12... Nc6
{[%clk 0:03:00.1]} 13. Ng4 {[%clk 0:02:17.2]} 13... Nxg4 {[%clk 0:02:31.1]} 14.
Qxg4 {[%clk 0:02:19.1]} 14... cxd4 {[%clk 0:02:32.3]} 15. Nxd5 {[%clk
0:02:20.1]} 15... dxe3 {[%clk 0:02:08.7]} 16. Bc3 {[%clk 0:01:58.5]} 16... f6
{[%clk 0:01:52.8]} 17. Qe6+ {[%clk 0:01:31.7]} 17... Kh8 {[%clk 0:01:52.3]} 18.
Qh3 {[%clk 0:01:33.3]} 18... f5 {[%clk 0:01:45.6]} 19. Bxf5 {[%clk 0:01:26.5]}
19... Rxf5 {[%clk 0:01:42]} 20. Qxf5 {[%clk 0:01:28.4]} 20... Bc5 {[%clk
0:01:43.4]} 21. Kh1 {[%clk 0:01:18.6]} 21... Nd4 {[%clk 0:01:39]} 22. Bxd4
{[%clk 0:01:18.5]} 22... Bxd4 {[%clk 0:01:40.9]} 23. Nc7 {[%clk 0:01:00.2]}
23... Bxb2 {[%clk 0:00:57.2]} 24. Nxa8 {[%clk 0:00:31.4]} 24... e2 {[%clk
0:00:54.1]} 25. Qc2 {[%clk 0:00:21.7]} 25... exf1=Q+ {[%clk 0:00:49.6]} 26. Rxf1
{[%clk 0:00:22.5]} 26... Bf6 {[%clk 0:00:42.7]} 27. Nc7 {[%clk 0:00:24]} 27...
Qc8 {[%clk 0:00:38.8]} 28. Re1 {[%clk 0:00:23.8]} 1-0

[Event "*** Titled Tuesday Blitz"]
[Site "Chess.com"]
[Date "2019.08.06"]
[Round "9"]
[White "warmoatmeal"]
[Black "JonahWillow"]
[Result "0-1"]
[WhiteElo "2052"]
[BlackElo "2627"]
[TimeControl "180+2"]
[EndTime "15:07:50 PDT"]
[Termination "JonahWillow won by resignation"]

1. d4 {[%clk 0:02:58.2]} 1... Nf6 {[%clk 0:03:00.7]} 2. Nf3 {[%clk 0:02:56.9]}
2... e6 {[%clk 0:03:02.6]} 3. Bf4 {[%clk 0:02:57.3]} 3... c5 {[%clk 0:02:59.2]}
4. e3 {[%clk 0:02:58]} 4... cxd4 {[%clk 0:03:00.7]} 5. exd4 {[%clk 0:02:58.8]}
5... b6 {[%clk 0:03:02.6]} 6. c3 {[%clk 0:02:59.7]} 6... Bb7 {[%clk 0:03:04.2]}
7. Nbd2 {[%clk 0:03:00.2]} 7... Be7 {[%clk 0:03:05.9]} 8. Bd3 {[%clk 0:03:00.8]}
8... O-O {[%clk 0:03:07.6]} 9. O-O {[%clk 0:03:01.5]} 9... d6 {[%clk 0:03:09.5]}
10. Qe2 {[%clk 0:03:00.1]} 10... Nbd7 {[%clk 0:03:10.7]} 11. Ne4 {[%clk
0:03:00.4]} 11... Nxe4 {[%clk 0:03:09.5]} 12. Bxe4 {[%clk 0:03:01.1]} 12... Bxe4
{[%clk 0:03:11.2]} 13. Qxe4 {[%clk 0:03:03]} 13... d5 {[%clk 0:03:13.1]} 14. Qe2
{[%clk 0:03:03.2]} 14... a6 {[%clk 0:03:11.9]} 15. Ne5 {[%clk 0:03:02.5]} 15...
Nxe5 {[%clk 0:03:12.7]} 16. Bxe5 {[%clk 0:03:03.4]} 16... b5 {[%clk 0:03:14.1]}
17. a3 {[%clk 0:02:58.1]} 17... Bd6 {[%clk 0:03:12.6]} 18. Bxd6 {[%clk
0:02:57.2]} 18... Qxd6 {[%clk 0:03:14.5]} 19. Qe5 {[%clk 0:02:58.6]} 19... Qxe5
{[%clk 0:03:14.5]} 20. dxe5 {[%clk 0:02:59.3]} 20... Rfc8 {[%clk 0:03:16.4]} 21.
a4 {[%clk 0:02:47.2]} 21... b4 {[%clk 0:03:02]} 22. cxb4 {[%clk 0:02:47.4]}
22... Rab8 {[%clk 0:02:55.7]} 23. b5 {[%clk 0:02:40.9]} 23... axb5 {[%clk
0:02:57.6]} 24. a5 {[%clk 0:02:41.8]} 24... b4 {[%clk 0:02:54.8]} 25. Ra4 {[%clk
0:02:36.9]} 25... Rc2 {[%clk 0:02:52.2]} 26. Rb1 {[%clk 0:02:25]} 26... b3
{[%clk 0:02:42.1]} 27. Ra3 {[%clk 0:02:17.2]} 27... g5 {[%clk 0:02:39.4]} 28. h4
{[%clk 0:01:44.7]} 28... gxh4 {[%clk 0:02:36.5]} 29. a6 {[%clk 0:01:43.2]} 29...
Re2 {[%clk 0:02:30]} 30. f4 {[%clk 0:01:36.3]} 30... Kg7 {[%clk 0:02:24.5]} 31.
Kf1 {[%clk 0:01:34.4]} 31... Re4 {[%clk 0:02:22]} 32. a7 {[%clk 0:01:31.1]}
32... Ra8 {[%clk 0:02:22.7]} 33. Rba1 {[%clk 0:01:24.5]} 33... Rxf4+ {[%clk
0:02:23.6]} 34. Kg1 {[%clk 0:01:24.9]} 34... Rb4 {[%clk 0:02:25.5]} 35. Ra6
{[%clk 0:01:21.5]} 35... Kg6 {[%clk 0:02:25.2]} 36. Rc6 {[%clk 0:01:16.4]} 36...
Rb7 {[%clk 0:02:25.9]} 37. Rca6 {[%clk 0:01:17]} 37... Kf5 {[%clk 0:02:26.7]}
38. R6a4 {[%clk 0:01:11.4]} 38... Kxe5 {[%clk 0:02:24.8]} 39. Rxh4 {[%clk
0:01:05.2]} 39... Rbxa7 {[%clk 0:02:25.4]} 40. Rxa7 {[%clk 0:01:05.6]} 40...
Rxa7 {[%clk 0:02:27.3]} 41. Rb4 {[%clk 0:01:06.8]} 41... d4 {[%clk 0:02:12]} 42.
Rxb3 {[%clk 0:01:06.8]} 42... Ke4 {[%clk 0:02:13.1]} 43. Kf2 {[%clk 0:01:07.8]}
43... e5 {[%clk 0:02:14.2]} 44. Rh3 {[%clk 0:01:05.4]} 44... Ra2 {[%clk
0:02:12.6]} 45. Rb3 {[%clk 0:01:03.9]} 45... f5 {[%clk 0:02:12.1]} 46. Ke2
{[%clk 0:01:01.7]} 46... h5 {[%clk 0:02:10.7]} 47. Rb8 {[%clk 0:01:01.9]} 47...
f4 {[%clk 0:02:10.1]} 48. Rb7 {[%clk 0:01:01.3]} 48... h4 {[%clk 0:02:10.9]} 49.
Rb8 {[%clk 0:01:00.5]} 49... Ra1 {[%clk 0:02:07.3]} 50. Rb7 {[%clk 0:00:58.9]}
50... Rg1 {[%clk 0:02:07.1]} 51. Kf2 {[%clk 0:00:59.2]} 51... Rb1 {[%clk
0:02:08.7]} 52. Ke2 {[%clk 0:00:59.3]} 52... h3 {[%clk 0:02:09.4]} 53. gxh3
{[%clk 0:00:59.8]} 53... f3+ {[%clk 0:02:10.9]} 54. Kf2 {[%clk 0:01:00.3]} 54...
d3 {[%clk 0:02:12.5]} 55. Rb4+ {[%clk 0:01:00.1]} 55... Kf5 {[%clk 0:02:11.2]}
56. Rb8 {[%clk 0:00:41.2]} 56... d2 {[%clk 0:02:10.2]} 57. Rf8+ {[%clk
0:00:40.5]} 57... Ke4 {[%clk 0:02:10.1]} 58. Rd8 {[%clk 0:00:40.6]} 58... d1=Q
{[%clk 0:02:10.4]} 0-1